bitfinex-derivatives/quotes_SOLF0:USTF0_20250823
["timestamp","ask_amount","ask_price","bid_price","bid_amount"]
[1755926072404,0.13,207.16,207.14,129.78]
[1755926072707,2.82,207.16,207.1,129.78]
[1755926073105,2.82,207.16,207.09,129.78]
[1755926073301,2.82,207.16,207.11,4.8305]
[1755926073904,0.13,207.16,207.12,6.19720193]
[1755926074110,0.13,207.16,207.13,1.97624579]
[1755926074305,0.13,207.16,207.1,24.1537]
[1755926074513,0.13,207.16,207.14,4.8298]
[1755926074712,19.13519487,207.18,207.15,135.93022209]
[1755926074911,19.13519487,207.18,207.16,6.19022209]
[1755926075112,19.13519487,207.18,207.17,6.18754611]
[1755926075414,19.13519487,207.18,207.17,129.78]
[1755926075910,21.65519487,207.18,207.17,129.78]
[1755926076506,21.65519487,207.18,207.0,24.1648]
[1755926076712,2.52,207.17,207.01,6.19220208]
[1755926076903,2.52,207.17,207.02,135.95220208]
[1755926077114,12.26900931,207.15,207.03,135.95220208]
[1755926077314,12.26900931,207.15,206.98,324.62]
[1755926077517,12.26900931,207.15,207.0,24.1654]
[1755926077716,2.52,207.15,207.01,14.18164801]
[1755926078022,2.52,207.15,207.02,14.18164801]
[1755926078219,2.52,207.15,207.03,10.44264511]
[1755926078419,2.52,207.15,207.04,6.20097173]
[1755926078618,15.05,207.16,207.05,160.10037173]
[1755926078818,48.89,207.14,207.06,40.10788104]
[1755926079022,48.89,207.14,207.07,6.20097173]
[1755926079317,48.89,207.14,207.08,1.97740761]
[1755926079525,48.89,207.14,207.08,129.74]
[1755926079723,48.89,207.14,207.1,4.8307]
[1755926080519,48.89,207.14,207.12,4.8302]
[1755926080817,48.89,207.14,207.06,9.74900931]
[1755926081021,48.89,207.14,207.02,24.163]
[1755926081224,48.89,207.14,207.07,129.7]
[1755926081421,48.89,207.14,207.08,6.2051219]
[1755926081722,48.89,207.14,207.09,6.20430787]
[1755926081918,48.89,207.14,207.07,129.7]
[1755926082121,48.89,207.14,207.08,6.20427069]
[1755926082321,48.89,207.14,207.08,129.74]
[1755926082526,51.41,207.14,207.08,129.74]
[1755926082924,48.89,207.14,207.08,129.74]
[1755926083519,48.89,207.14,207.11,4.8305]
[1755926083722,48.89,207.14,207.08,129.74]
[1755926084326,48.89,207.14,207.09,6.22962695]
[1755926084516,48.89,207.14,207.09,4.8307]
[1755926084721,51.41,207.14,207.09,4.8307]
[1755926085023,48.89,207.14,207.09,4.8307]
[1755926085214,2.52,207.13,206.98,324.62]
[1755926085423,2.52,207.13,207.0,6.26307923]
[1755926085629,4.831,207.09,206.89,24.178]
[1755926085830,2.52,207.13,206.9,143.9392607]
[1755926086029,2.52,207.13,206.91,14.2592607]
[1755926086226,2.52,207.09,206.94,4.8343]
[1755926086424,2.52,207.09,206.95,6.27035985]
[1755926086724,2.52,207.09,206.97,4.8336]
[1755926086925,2.52,207.09,206.98,136.11229601]
[1755926087127,2.52,207.09,206.98,129.84]
[1755926087425,2.52,207.07,206.98,129.84]
[1755926087830,2.52,207.07,206.97,4.8336]
[1755926088125,2.52,207.07,206.81,4.97431996]
[1755926088126,2.52,207.01,206.8,24.1887]
[1755926088328,24.6389,207.06,206.8,24.1887]
[1755926088329,2.52,206.97,206.81,140.34141444]
[1755926088527,2.52,207.07,206.86,24.1817]
[1755926088726,2.52,207.07,206.87,14.3039073]
[1755926089023,4.832,207.05,206.88,136.62890523]
[1755926089229,2.52,207.03,206.89,6.29067345]
[1755926089429,2.52,207.03,206.84,130.34]
[1755926089626,9.74900931,207.04,206.85,6.29849559]
[1755926089826,2.52,207.02,206.86,6.29849559]
[1755926090023,2.52,207.02,206.87,6.29849559]
[1755926090227,2.52,207.02,206.88,6.29849559]
[1755926090425,2.52,207.02,206.81,9.74900931]
[1755926090624,2.52,207.02,206.82,140.91386154]
[1755926090821,2.52,207.0,206.83,6.3025553]
[1755926091022,2.52,207.0,206.84,6.3025553]
[1755926091023,2.52,206.99,206.84,6.3025553]
[1755926091220,2.52,206.99,206.85,6.3025553]
[1755926091526,2.52,206.94,206.8,4.8376]
[1755926091726,2.52,206.94,206.79,130.42]
[1755926091727,2.52,206.94,206.81,6.30429675]
[1755926091928,2.52,206.94,206.82,6.30429675]
[1755926092129,26.6925,206.94,206.83,6.30429675]
[1755926092326,2.52,206.93,206.77,130.62]
[1755926092524,2.52,206.93,206.78,6.30172085]
[1755926092720,4.8355,206.9,206.79,6.30172085]
[1755926092924,4.8355,206.9,206.8,4.29657758]
[1755926093129,2.52,206.89,206.77,130.62]
[1755926093324,2.52,206.87,206.78,4.29767273]
[1755926093529,2.52,206.87,206.68,9.74900931]
[1755926093820,2.52,206.86,206.69,20.30540281]
[1755926094024,2.52,206.86,206.7,10.5563935]
[1755926094221,2.52,206.86,206.71,10.5563935]
[1755926094421,2.52,206.86,206.72,10.5563935]
[1755926094629,2.52,206.86,206.73,6.30446421]
[1755926094931,19.97,206.85,206.74,6.30446421]
[1755926095134,19.97,206.85,206.75,6.30446421]
[1755926095324,19.97,206.85,206.69,15.7959546]
[1755926095524,19.97,206.85,206.7,6.29005777]
[1755926095730,19.97,206.85,206.71,6.29005777]
[1755926095929,2.52,206.84,206.72,6.29005777]
[1755926096130,2.52,206.84,206.73,6.29192973]
[1755926096433,2.52,206.84,206.74,4.28868859]
[1755926096734,2.52,206.84,206.7,39.9963546]
[1755926096930,2.52,206.84,206.74,4.8391]
[1755926097235,2.52,206.84,206.7,15.7959546]
[1755926097435,2.52,206.84,206.71,6.28989822]
[1755926097733,2.52,206.84,206.72,4.28400321]
[1755926097935,2.52,206.84,206.7,15.7959546]
[1755926098334,2.52,206.84,206.71,4.28410658]
[1755926098531,2.52,206.84,206.7,15.7959546]
[1755926098730,2.52,206.84,206.71,4.27951051]
[1755926098931,2.52,206.84,206.7,15.7959546]
[1755926099134,2.52,206.84,206.71,4.27946373]
[1755926099337,2.52,206.84,206.7,15.7959546]
[1755926099536,2.52,206.84,206.7,20.6358546]
[1755926099737,2.52,206.84,206.7,15.7959546]
[1755926099939,7.3569,206.84,206.7,15.7959546]
[1755926100141,2.52,206.83,206.66,130.76]
[1755926100337,2.52,206.83,206.67,6.27094469]
[1755926100534,2.52,206.83,206.68,6.27094469]
[1755926100734,2.52,206.83,206.66,15.7959546]
[1755926101034,2.52,206.83,206.6,324.7]
[1755926101234,15.7959546,206.82,206.5,15.7959546]
[1755926101538,2.52,206.76,206.51,1.99801817]
[1755926101733,2.52,206.76,206.35,1392.66]
[1755926101734,2.52,206.64,206.33,328.67073997]
[1755926101937,2.52,206.64,206.46,24.2283]
[1755926102134,2.52,206.64,206.56,4.8432]
[1755926102338,2.52,206.69,206.54,24.2189]
[1755926102532,2.52,206.69,206.51,15.7959546]
[1755926102832,2.52,206.69,206.48,324.94]
[1755926102833,2.52,206.74,206.62,24.2097]
[1755926103239,2.52,206.74,206.52,24.2206]
[1755926103539,2.67,206.75,206.48,349.1657]
[1755926103744,2.67,206.69,206.48,324.94]
[1755926103941,2.67,206.67,206.47,24.227]
[1755926104246,2.67,206.65,206.46,132.72]
[1755926104443,2.67,206.6,206.46,132.72]
[1755926104844,2.67,206.54,206.26,15.7959546]
[1755926105035,2.67,206.51,206.36,4.848]
[1755926105237,15.7959546,206.5,206.27,24.2507]
[1755926105540,2.67,206.49,206.28,6.23790952]
[1755926105737,2.67,206.49,206.26,133.12]
[1755926106043,2.67,206.49,206.27,6.23873764]
[1755926106243,2.67,206.49,206.31,24.2453]
[1755926106645,2.67,206.49,206.27,252.2052]
[1755926106839,2.67,206.49,206.4,24.2353]
[1755926107145,2.67,206.49,206.27,252.2052]
[1755926107146,2.67,206.55,206.19,100.61513166]
[1755926107339,2.67,206.53,206.29,24.2478]
[1755926107538,2.67,206.53,206.3,133.56]
[1755926107845,2.67,206.53,206.36,24.2402]
[1755926108852,2.67,206.53,206.36,15.7959546]
[1755926109035,23.4,206.52,206.36,15.7959546]
[1755926109241,2.67,206.51,206.33,24.2432]
[1755926109437,2.67,206.51,206.37,24.2389]
[1755926109947,2.67,206.51,206.33,24.2428]
[1755926110343,2.67,206.51,206.32,24.2445]
[1755926110538,2.67,206.51,206.3,150.0159546]
[1755926110738,2.67,206.51,206.3,24.247]
[1755926111248,7.5147,206.51,206.33,24.2435]
[1755926111544,23.4,206.52,206.28,158.4692]
[1755926111545,23.4,206.52,206.47,4.8452]
[1755926111749,23.4,206.52,206.44,24.2305]
[1755926112145,23.4,206.52,206.46,4.8456]
[1755926112544,23.4,206.52,206.41,158.5738]
[1755926112741,23.4,206.52,206.41,134.34]
[1755926113043,246.5446,206.96,206.41,134.34]
[1755926113044,2.67,206.68,206.49,15.7959546]
[1755926113243,2.67,206.68,206.41,134.34]
[1755926113244,2.67,206.68,206.57,24.2155]
[1755926113448,2.67,206.78,206.59,15.7959546]
[1755926113648,2.67,206.78,206.68,4.8404]
[1755926113848,2.67,206.78,206.59,15.7959546]
[1755926114148,2.67,206.78,206.6,134.72]
[1755926114351,2.67,206.78,206.63,29.0499]
[1755926114753,2.67,206.78,206.63,4.8415]
[1755926114952,2.67,206.78,206.61,134.6]
[1755926115144,84.61995427,206.84,206.65,15.7959546]
[1755926115145,2.67,206.84,206.65,15.7959546]
[1755926115349,19.97,206.85,206.71,15.7959546]
[1755926115647,2.67,206.97,206.77,15.7959546]
[1755926115852,21.96,206.84,206.77,15.7959546]
[1755926116655,2.67,206.97,206.82,4.8371]
[1755926116843,2.67,206.97,206.82,134.94]
[1755926117156,2.67,207.03,206.83,39.9810546]
[1755926117452,2.67,207.03,206.84,29.0207]
[1755926118053,2.67,207.03,206.83,15.7959546]
[1755926118256,27.92,207.02,206.84,134.82]
[1755926118650,2.67,207.01,206.8,325.42]
[1755926119152,29.0076,206.94,206.8,325.42]
[1755926119355,2.67,206.93,206.8,325.42]
[1755926119555,2.67,206.93,206.75,134.74]
[1755926120048,24.1776,206.9,206.71,4.8397]
[1755926120254,2.67,206.89,206.73,24.1966]
[1755926121256,2.67,206.89,206.74,29.0348]
[1755926121554,2.67,206.89,206.74,4.8391]
[1755926121748,2.67,206.89,206.75,134.82]
[1755926122357,2.67,206.89,206.74,4.8391]
[1755926122560,2.67,206.89,206.69,325.28]
[1755926123057,24.1806,206.87,206.69,325.28]
[1755926123455,2.67,206.89,206.7,39.9962546]
[1755926123858,2.67,206.89,206.7,15.7959546]
[1755926124048,2.67,206.89,206.71,134.78]
[1755926124557,2.67,206.89,206.72,134.78]
[1755926124758,26.35,206.88,206.72,134.78]
[1755926124956,26.35,206.88,206.79,4.8378]
[1755926125161,26.35,206.88,206.8,134.86]
[1755926125462,26.35,206.88,206.76,15.7959546]
[1755926125656,26.35,206.88,206.8,134.86]
[1755926127060,22.34,206.87,206.8,134.86]
[1755926128258,22.34,206.87,206.81,24.1872]
[1755926128455,22.34,206.87,206.81,15.7959546]
[1755926128764,22.34,206.87,206.83,29.0219]
[1755926130053,22.34,206.87,206.85,4.8363]
[1755926130253,26.35,206.88,206.85,29.0191]
[1755926130454,12.09,206.92,206.85,29.0191]
[1755926130653,12.09,206.92,206.87,4.8359]
[1755926130858,12.09,206.92,206.88,134.4]
[1755926132459,12.09,206.92,206.85,134.12]
[1755926133057,12.09,206.92,206.79,24.1896]
[1755926133256,12.09,206.92,206.82,140.38228946]
[1755926133455,12.09,206.92,206.82,134.18]
[1755926133655,12.09,206.92,206.83,6.20183743]
[1755926133858,12.09,206.92,206.82,134.18]
[1755926134158,12.09,206.92,206.83,6.20156573]
[1755926134357,31.03,206.92,206.82,134.18]
[1755926134559,31.03,206.92,206.83,6.20170835]
[1755926134765,27.92,207.02,206.87,15.7959546]
[1755926134962,27.92,207.02,206.84,339.04162452]
[1755926134963,27.92,207.02,206.93,15.7959546]
[1755926135167,27.92,207.02,206.94,140.48170835]
[1755926135368,27.92,207.02,206.94,134.28]
[1755926136067,2.65,207.23,206.99,15.7959546]
[1755926136261,2.65,207.23,207.04,24.1601]
[1755926136468,2.65,207.23,207.05,1.96355565]
[1755926136764,2.65,207.23,207.05,15.7959546]
[1755926136964,2.65,207.23,207.06,6.17022621]
[1755926137159,2.65,207.28,207.07,140.99022621]
[1755926137364,2.65,207.28,207.15,4.8294]
[1755926137564,2.65,207.28,207.13,24.1501]
[1755926137565,2.65,207.28,207.16,134.82]
[1755926137760,2.65,207.28,207.17,28.9746]
[1755926138066,2.65,207.28,207.17,4.8291]
[1755926138067,25.97,207.27,207.17,4.8291]
[1755926138267,25.97,207.27,207.18,134.78]
[1755926138466,25.97,207.27,207.19,134.74]
[1755926138667,0.16,207.26,207.19,134.74]
[1755926139068,0.16,207.26,207.2,134.74]
[1755926139771,0.16,207.26,207.2,135.14]
[1755926140269,0.16,207.26,207.14,324.98]
[1755926140468,0.16,207.26,207.15,135.12]
[1755926140666,0.16,207.26,207.15,159.2676]
[1755926140870,0.16,207.26,207.15,139.9494]
[1755926141268,0.16,207.26,207.15,135.12]
[1755926141972,0.16,207.26,207.17,4.8289]
[1755926142368,0.16,207.26,207.15,135.12]
[1755926142571,0.16,207.26,207.14,324.98]
[1755926142572,0.16,207.26,207.16,134.86]
[1755926142968,0.16,207.26,207.17,134.78]
[1755926143373,0.16,207.26,207.14,329.8097]
[1755926143675,0.16,207.26,207.18,134.68]
[1755926143877,0.16,207.26,207.15,24.1475]
[1755926144078,0.16,207.26,207.16,134.6]
[1755926144376,0.16,207.26,207.18,28.9728]
[1755926144772,25.97,207.27,207.14,324.98]
[1755926144773,25.97,207.27,207.19,24.143]
[1755926144974,25.97,207.27,207.14,349.1283]
[1755926145178,25.97,207.27,207.16,24.1465]
[1755926145371,25.97,207.27,207.2,4.8284]
[1755926145773,25.97,207.27,207.21,135.16]
[1755926145980,25.97,207.27,207.22,135.16]
[1755926146177,2.65,207.57,207.22,242.9559546]
[1755926146376,7.487,207.57,207.37,28.9465]
[1755926146682,7.22157145,207.57,207.38,141.01]
[1755926146878,4.837,207.57,207.38,0.25]
[1755926147084,4.837,207.57,207.39,140.74]
[1755926147277,4.837,207.59,207.33,141.2]
[1755926147579,4.837,207.59,207.28,15.7959546]
[1755926147580,4.8216,207.5,207.31,141.22]
[1755926147779,24.106,207.51,207.31,141.22]
[1755926147984,4.8225,207.46,207.27,145.9666]
[1755926148177,4.8225,207.46,207.27,146.0066]
[1755926148695,2.65,207.45,207.34,4.8249]
[1755926148884,6.86,207.45,207.32,141.78]
[1755926149089,3.94,207.44,207.32,141.78]
[1755926149589,26.59,207.43,207.32,141.78]
[1755926150992,26.59,207.43,207.36,0.25]
[1755926151293,3.94,207.44,207.37,141.52]
[1755926151788,3.94,207.44,207.42,24.1162]
[1755926152187,0.05,207.45,207.42,24.1162]
[1755926152490,0.05,207.45,207.42,4.8232]
[1755926152691,0.05,207.45,207.43,141.58]
[1755926152883,0.05,207.45,207.42,4.8232]
[1755926153189,0.05,207.45,207.43,141.58]
[1755926153589,0.05,207.45,207.38,4.824]
[1755926153788,0.05,207.45,207.33,15.7959546]
[1755926154194,0.05,207.45,207.34,4.8249]
[1755926154395,0.05,207.45,207.37,141.4]
[1755926154594,0.05,207.45,207.34,15.7959546]
[1755926154792,0.05,207.45,207.37,146.4044]
[1755926155392,0.05,207.45,207.4,28.9423]
[1755926155590,0.05,207.45,207.34,15.7959546]
[1755926155798,0.05,207.45,207.37,141.54]
[1755926156096,0.05,207.45,207.38,146.3641]
[1755926156292,0.05,207.45,207.38,4.8241]
[1755926156499,0.05,207.45,207.42,24.1164]
[1755926156694,0.05,207.45,207.42,4.8231]
[1755926156895,0.05,207.45,207.35,24.1238]
[1755926157100,0.05,207.45,207.37,141.42]
[1755926157295,0.05,207.45,207.35,24.1238]
[1755926157496,0.05,207.45,207.37,141.3]
[1755926158000,0.05,207.45,207.4,4.8237]
[1755926158195,0.05,207.45,207.38,24.121]
[1755926158794,0.05,207.45,207.42,53.0554]
[1755926158998,25.05,207.47,207.43,141.26]
[1755926160103,25.05,207.47,207.44,28.9362]
[1755926160503,25.05,207.47,207.35,24.1242]
[1755926160803,25.05,207.47,207.37,141.38]
[1755926161397,25.05,207.47,207.38,6.08225293]
[1755926161606,25.05,207.47,207.39,4.14427919]
[1755926161803,0.05,207.46,207.35,24.1245]
[1755926162104,0.05,207.46,207.28,15.7959546]
[1755926162310,0.05,207.46,207.39,28.9436]
[1755926162506,0.05,207.46,207.32,24.1278]
[1755926163009,0.05,207.46,207.37,141.56]
[1755926163708,0.05,207.46,207.38,24.121]
[1755926163908,0.05,207.46,207.37,0.04]
[1755926164110,0.05,207.46,207.38,141.48]
[1755926164510,0.05,207.46,207.39,141.48]
[1755926165003,0.05,207.46,207.4,0.0335759]
[1755926171104,0.05,207.46,207.41,141.22]
[1755926171306,0.05,207.46,207.4,0.0335759]
[1755926173302,0.05,207.46,207.41,6.14574697]
[1755926173508,2.77,207.43,207.4,0.0335759]
[1755926174008,0.05,207.46,207.4,0.0335759]
[1755926174209,0.48,207.45,207.4,0.0335759]
[1755926174410,0.05,207.46,207.4,0.0335759]
[1755926174615,2.82,207.46,207.4,0.0335759]
[1755926175007,2.82,207.46,207.41,4.1885126]
[1755926175210,2.82,207.46,207.42,6.16162757]
[1755926175410,2.82,207.46,207.4,0.0335759]
[1755926175610,2.82,207.46,207.41,6.16122439]
[1755926175808,2.82,207.46,207.4,0.0335759]
[1755926175809,2.77,207.45,207.4,0.0335759]
[1755926176005,0.05,207.46,207.41,1.96717393]
[1755926176210,2.82,207.46,207.42,1.97017527]
[1755926176412,4.14,207.52,207.45,15.7959546]
[1755926176611,4.14,207.52,207.44,24.1135]
[1755926176612,4.14,207.52,207.46,13.94069972]
[1755926176917,4.837,207.65,207.51,15.7959546]
[1755926177116,4.837,207.65,207.52,153.20494489]
[1755926177313,4.837,207.65,207.53,10.28611099]
[1755926177620,4.837,207.65,207.56,0.03512599]
[1755926177813,4.837,207.65,207.57,6.1039898]
[1755926178009,4.837,207.71,207.58,4.13644562]
[1755926178214,4.837,207.71,207.59,6.10304127]
[1755926178409,4.837,207.69,207.6,6.10304127]
[1755926178619,4.837,207.65,207.49,143.5]
[1755926178914,4.837,207.63,207.5,13.15320022]
[1755926179117,4.837,207.63,207.51,8.33182086]
[1755926179316,2.77,207.64,207.52,8.34033155]
[1755926179517,4.837,207.67,207.55,1.96]
[1755926179712,0.1,207.63,207.56,12.01248172]
[1755926179911,0.1,207.63,207.57,12.01258701]
[1755926180116,0.06,207.66,207.62,6.7785]
[1755926180316,0.06,207.66,207.63,10.30033155]
[1755926180515,0.06,207.66,207.64,8.34033155]
[1755926180720,0.06,207.66,207.65,4.14527432]
[1755926181216,0.06,207.66,207.65,8.33820551]
[1755926181421,0.06,207.66,207.65,4.14527432]
[1755926182717,3.31,207.66,207.52,1.96]
[1755926182920,2.83,207.66,207.53,155.10240403]
[1755926183120,2.83,207.66,207.54,12.02240403]
[1755926183419,2.83,207.66,207.55,4.15284906]
[1755926183616,2.83,207.66,207.56,4.15284906]
[1755926183812,2.83,207.66,207.57,4.15284906]
[1755926184018,0.06,207.66,207.58,8.34730064]
[1755926184220,2.77,207.65,207.59,4.15284906]
[1755926184417,2.77,207.65,207.6,4.15754967]
[1755926184719,2.77,207.64,207.51,4.821]
[1755926184917,2.77,207.64,207.52,8.35656768]
[1755926185114,2.77,207.64,207.53,4.15756835]
[1755926185317,2.77,207.64,207.42,325.98]
[1755926185513,2.77,207.64,207.43,12.05367615]
[1755926185718,2.77,207.64,207.45,2.58]
[1755926185918,0.06,207.66,207.51,2.58]
[1755926186118,0.06,207.66,207.52,150.90929453]
[1755926186317,0.06,207.66,207.53,7.88929453]
[1755926186520,0.06,207.66,207.56,4.8199]
[1755926186720,0.06,207.66,207.57,4.18734295]
[1755926187026,0.06,207.66,207.58,9.00674295]
[1755926187224,0.06,207.66,207.59,4.18734295]
[1755926187425,0.06,207.66,207.56,2.58]
[1755926187625,0.06,207.66,207.57,7.87021963]
[1755926187821,0.06,207.66,207.58,4.18836146]
[1755926188028,0.06,207.66,207.59,7.86922526]
[1755926188227,0.06,207.66,207.6,4.18836146]
[1755926188424,0.06,207.66,207.62,2.58]
[1755926188927,0.06,207.66,207.63,4.18796334]
[1755926189128,0.06,207.66,207.62,2.58]
[1755926189328,0.06,207.66,207.63,4.19006545]
[1755926189523,0.06,207.66,207.55,18.3759546]
[1755926189825,0.06,207.66,207.56,7.87720471]
[1755926190127,0.06,207.66,207.57,7.87720471]
[1755926190329,0.06,207.66,207.58,7.87720471]
[1755926190525,0.06,207.66,207.59,7.87935746]
[1755926190720,0.06,207.66,207.6,6.12788538]
[1755926190925,0.06,207.66,207.61,1.93562787]
[1755926191126,0.06,207.66,207.62,1.93562787]
[1755926191326,0.06,207.66,207.63,6.13129328]
[1755926191625,0.06,207.66,207.64,6.13129328]
[1755926191827,0.06,207.66,207.65,1.93562787]
[1755926192330,0.06,207.66,207.65,4.51562787]
[1755926192533,0.06,207.66,207.65,8.70867127]
[1755926193226,0.06,207.66,207.65,4.51562787]
[1755926193432,0.06,207.66,207.65,8.70925762]
[1755926193929,0.06,207.66,207.65,6.12925762]
[1755926194330,0.06,207.66,207.65,1.93562787]
[1755926195632,0.06,207.66,207.59,2.7]
[1755926195834,0.06,207.66,207.6,4.19493609]
[1755926196035,0.06,207.66,207.61,6.13111912]
[1755926196233,2.71,207.66,207.62,1.93618303]
[1755926196434,0.06,207.66,207.63,1.93618303]
[1755926196736,0.06,207.66,207.54,2.7]
[1755926196737,2.65,207.65,207.54,2.7]
[1755926196936,0.06,207.66,207.55,7.88469229]
[1755926197136,0.06,207.66,207.56,4.19699931]
[1755926197332,0.06,207.66,207.57,8.33013069]
[1755926197533,0.06,207.66,207.58,8.33013069]
[1755926197732,0.06,207.66,207.59,4.13313138]
[1755926197933,0.06,207.66,207.6,4.13313138]
[1755926198135,2.71,207.66,207.61,4.13313138]
[1755926198329,2.71,207.66,207.62,4.13313138]
[1755926198330,0.06,207.66,207.62,4.13313138]
[1755926198533,0.06,207.66,207.63,4.13313138]
[1755926198731,0.06,207.66,207.64,4.13313138]
[1755926198937,0.06,207.66,207.65,4.13110953]
[1755926199233,2.71,207.66,207.54,2.7]
[1755926199438,2.71,207.66,207.55,8.32607205]
[1755926199636,2.71,207.66,207.56,8.32607205]
[1755926199835,2.71,207.66,207.57,4.13155002]
[1755926200036,0.06,207.66,207.58,4.13155002]
[1755926200341,0.06,207.66,207.59,8.32679114]
[1755926200637,0.06,207.66,207.6,8.32581595]
[1755926200829,0.06,207.66,207.61,4.13155002]
[1755926201036,0.06,207.66,207.62,4.13155002]
[1755926201233,2.65,207.65,207.55,141.46]
[1755926201428,0.06,207.66,207.57,2.7]
[1755926201634,0.06,207.66,207.58,8.32593233]
[1755926201834,0.06,207.66,207.6,4.8191]
[1755926202033,0.06,207.66,207.61,4.13194867]
[1755926202234,0.06,207.66,207.63,2.7]
[1755926202437,0.06,207.66,207.58,2.7]
[1755926202637,0.06,207.66,207.59,4.12976385]
[1755926202833,0.06,207.66,207.6,4.12976385]
[1755926203028,0.06,207.66,207.58,2.7]
[1755926203029,0.06,207.66,207.61,4.12976385]
[1755926203341,0.06,207.66,207.58,2.7]
[1755926203639,0.06,207.66,207.59,4.12920782]
[1755926203938,0.06,207.66,207.54,141.3]
[1755926204237,0.06,207.66,207.55,8.32253056]
[1755926204433,0.06,207.66,207.56,4.12980828]
[1755926204631,0.06,207.66,207.57,4.12980828]
[1755926204834,0.06,207.66,207.53,2.7]
[1755926205030,0.06,207.66,207.54,4.13013976]
[1755926205235,0.06,207.66,207.55,4.13013976]
[1755926205436,0.06,207.66,207.53,2.7]
[1755926205636,4.8182,207.64,207.54,4.13079914]
[1755926205835,4.8182,207.64,207.53,2.7]
[1755926206036,4.8182,207.64,207.54,4.17428603]
[1755926206336,4.8182,207.64,207.55,4.17428603]
[1755926206537,4.8182,207.64,207.56,4.17428603]
[1755926206738,4.8182,207.64,207.57,4.17428603]
[1755926206938,4.8182,207.64,207.53,2.7]
[1755926207138,4.8182,207.64,207.54,4.17375725]
[1755926207340,4.8182,207.64,207.55,4.17375725]
[1755926207533,4.8191,207.6,207.56,4.17375725]
[1755926207840,4.8191,207.6,207.49,141.24]
[1755926207841,2.65,207.59,207.49,141.24]
[1755926208037,2.65,207.59,207.5,8.35552684]
[1755926208234,2.65,207.59,207.51,4.17643659]
[1755926208431,2.65,207.59,207.52,4.17643659]
[1755926208735,2.65,207.59,207.53,6.07014896]
[1755926209038,2.65,207.62,207.54,4.17643659]
[1755926209236,2.65,207.62,207.55,4.17643659]
[1755926209436,2.65,207.62,207.49,141.24]
[1755926209736,4.8196,207.58,207.5,6.07611752]
[1755926210039,4.8196,207.58,207.51,6.07611752]
[1755926210243,4.8196,207.58,207.52,4.18149553]
[1755926210436,2.65,207.58,207.53,4.18149553]
[1755926210637,2.65,207.62,207.54,4.18149553]
[1755926210834,2.65,207.62,207.43,2.7]
[1755926211045,2.65,207.62,207.44,12.96742421]
[1755926211239,24.0947,207.61,207.45,6.082236]
[1755926211538,24.1007,207.56,207.46,4.18443081]
[1755926211742,24.1007,207.56,207.29,15.7959546]
[1755926211743,2.65,207.55,207.22,9.6559]
[1755926212037,4.8234,207.42,207.27,4.8267]
[1755926212238,2.65,207.43,207.28,12.9857565]